[Event "GER-ch Youth U12 2020"]
[Site "Willingen"]
[Date "2020.10.31"]
[Round "7.20"]
[White "Aravindan, Midhulan"]
[Black "Isbilir, Levin"]
[Result "0-1"]
[ECO "B20"]
[WhiteElo "1565"]
[BlackElo "1233"]
[Annotator "NA RC"]
[PlyCount "90"]
[EventDate "2020.10.27"]
[EventType "swiss"]
[EventRounds "7"]
[EventCountry "GER"]
[SourceTitle "playchess.com"]
[Source "ChessBase"]
[SourceQuality "1"]
[TimeControl "40/5400+30:1800+30"]

1. e4 {[%emt 0:00:00]} c5 {[%emt 0:00:00]} 2. b3 {[%emt 0:00:00]} Nc6 {[%emt 0:00:00]} 3. Bb2 {[%emt 0:00:01]} d6 {[%emt 0:00:26]} 4. f4 {[%emt 0:01:31]} e5 {[%emt 0:05:42]} 5. Nc3 {[%emt 0:09:42]} exf4 {[%emt 0:02:15]} 6. Qf3 {[%emt 0:01:06]} Nd4 {[%emt 0:02:15]} 7. Qd3 {[%emt 0:02:51]} Qh4+ {[%emt 0:08:56]} 8. Kd1 {[%emt 0:00:22]} Nf6 {[%emt 0:18:50]} 9. Nf3 {[%emt 0:04:04]} Qh5 {[%emt 0:09:28]} 10. h3 {[%emt 0:11:27]} Ng4 {[%emt 0:03:47]} 11. hxg4 {[%emt 0:06:05]} Qxh1 {[%emt 0:00:40]} 12. Nxd4 {[%emt 0:00:15]} cxd4 {[%emt 0:00:43]} 13. Nd5 {[%emt 0:00:12]} Bxg4+ {[%emt 0:02:24]} 14. Kc1 {[%emt 0:00:28]} Rc8 {[%emt 0:03:01]} 15. Bxd4 {[%emt 0:01:40]} f3 {[%emt 0:02:12]} 16. g3 {[%emt 0:10:30]} f2 {[%emt 0:12:09]} 17. Kb2 {[%emt 0:02:42]} Qf3 {[%emt 0:07:10]} 18. Qb5+ {[%emt 0:02:41]} Bd7 {[%emt 0:00:14]} 19. Qxb7 {[%emt 0:00:30]} Qg4 {[%emt 0:05:31]} 20. Bxa7 {[%emt 0:09:08]} Be7 {[%emt 0:06:45]} 21. Nb6 {[%emt 0:08:00]} Bf6+ {[%emt 0:01:06]} 22. c3 {[%emt 0:01:08]} Rd8 {[%emt 0:00:34]} 23. Nxd7 {[%emt 0:03:09]} Rxd7 {[%emt 0:03:05]} 24. Qc8+ {[%emt 0:05:40]} Ke7 {[%emt 0:01:44]} 25. Qxh8 {[%emt 0:01:10]} Rxa7 {[%emt 0:00:15]} 26. Qxh7 {[%emt 0:01:00]} Qxg3 {[%emt 0:00:17]} 27. Qh3 {[%emt 0:01:36]} Qf4 {[%emt 0:00:24]} 28. Qd3 {[%emt 0:01:09]} Bg5 {[%emt 0:00:57]} 29. Kc2 {[%emt 0:00:20]} Ra5 {[%emt 0:00:28]} 30. a4 {[%emt 0:00:57]} Re5 {[%emt 0:01:11]} 31. Bg2 {[%emt 0:01:24]} f5 {[%emt 0:00:21]} 32. Rf1 {[%emt 0:04:50]} fxe4 {[%emt 0:00:26]} 33. Qd4 {[%emt 0:01:02]} e3 {[%emt 0:01:00]} 34. dxe3 {[%emt 0:02:25]} Qg3 {[%emt 0:01:02]} 35. Bd5 {[%emt 0:03:00]} Bxe3 {[%emt 0:00:24]} 36. Qc4 {[%emt 0:00:50]} Kf6 {[%emt 0:00:44]} 37. Bg8 {[%emt 0:01:11]} Re7 {[%emt 0:01:01]} 38. Qd5 {[%emt 0:01:36]} Qe5 {[%emt 0:00:46]} 39. Qxe5+ {[%emt 0:01:51]} Rxe5 {[%emt 0:00:41]} 40. b4 {[%emt 0:00:54]} g5 {[%emt 0:00:21]} 41. Kd3 {[%emt 0:30:34]} Ba7 {[%emt 0:30:37]} 42. Kd2 {[%emt 0:01:13]} g4 43. c4 {[%emt 0:00:00]} g3 {[%emt 0:00:00]} 44. Bd5 {[%emt 0:00:00]} Rxd5+ {[%emt 0:00:00]} 45. cxd5 {[%emt 0:00:00]} g2 0-1

[Event "GER-ch Youth U12 2020"]
[Site "Willingen"]
[Date "2020.10.31"]
[Round "7.21"]
[White "Guo, Jacob Tingshen"]
[Black "Toth, Luca"]
[Result "1/2-1/2"]
[ECO "E91"]
[WhiteElo "1551"]
[BlackElo "1680"]
[Annotator "NA RC"]
[PlyCount "80"]
[EventDate "2020.10.27"]
[EventType "swiss"]
[EventRounds "7"]
[EventCountry "GER"]
[SourceTitle "playchess.com"]
[Source "ChessBase"]
[SourceQuality "1"]
[TimeControl "40/5400+30:1800+30"]

1. d4 {[%emt 0:00:00]} Nf6 {[%emt 0:00:00]} 2. c4 {[%emt 0:00:00]} g6 {[%emt 0:00:00]} 3. Nc3 {[%emt 0:00:00]} Bg7 {[%emt 0:00:00]} 4. Nf3 {[%emt 0:00:00]} O-O {[%emt 0:00:00]} 5. e4 {[%emt 0:00:19]} d6 {[%emt 0:00:00]} 6. Be2 {[%emt 0:00:34]} Nbd7 {[%emt 0:00:52]} 7. O-O {[%emt 0:00:51]} e5 {[%emt 0:00:31]} 8. d5 {[%emt 0:00:08]} Nc5 {[%emt 0:01:03]} 9. Qc2 {[%emt 0:00:26]} a5 {[%emt 0:17:43]} 10. Ne1 {[%emt 0:20:53]} Ne8 {[%emt 0:02:46]} 11. Nd3 {[%emt 0:07:38]} Nxd3 {[%emt 0:06:50]} 12. Bxd3 {[%emt 0:01:31]} f5 {[%emt 0:01:57]} 13. f3 {[%emt 0:03:59]} f4 {[%emt 0:05:36]} 14. b3 {[%emt 0:07:43]} Bd7 {[%emt 0:02:29]} 15. a3 {[%emt 0:04:20]} Nf6 {[%emt 0:00:55]} 16. Bb2 {[%emt 0:03:00]} Qe7 {[%emt 0:02:45]} 17. b4 {[%emt 0:05:58]} Rfc8 {[%emt 0:10:54]} 18. b5 {[%emt 0:07:48]} c6 {[%emt 0:02:07]} 19. a4 {[%emt 0:04:18]} cxd5 {[%emt 0:04:13]} 20. cxd5 {[%emt 0:02:02]} Bf8 {[%emt 0:05:38]} 21. Rfc1 {[%emt 0:07:51]} Qd8 {[%emt 0:03:41]} 22. Qf2 {[%emt 0:01:26]} Be8 {[%emt 0:07:02]} 23. Ba3 {[%emt 0:05:50]} Nd7 {[%emt 0:03:46]} 24. Nd1 {[%emt 0:03:06]} Qb6 {[%emt 0:01:01]} 25. Nb2 {[%emt 0:02:10]} Qxf2+ {[%emt 0:01:05]} 26. Kxf2 {[%emt 0:00:08]} Nb6 {[%emt 0:00:35]} 27. Nc4 {[%emt 0:05:31]} Nxc4 {[%emt 0:00:33]} 28. Rxc4 {[%emt 0:00:20]} Rxc4 {[%emt 0:00:38]} 29. Bxc4 Rc8 {[%emt 0:00:20]} 30. Rc1 {[%emt 0:00:21]} Be7 {[%emt 0:05:10]} 31. Bb3 {[%emt 0:01:09]} Rxc1 {[%emt 0:01:18]} 32. Bxc1 {[%emt 0:00:14]} Bd8 {[%emt 0:00:33]} 33. g3 {[%emt 0:01:52]} Bb6+ {[%emt 0:02:59]} 34. Kg2 {[%emt 0:00:48]} g5 {[%emt 0:03:05]} 35. g4 {[%emt 0:01:17]} Kf7 {[%emt 0:01:17]} 36. h3 {[%emt 0:00:26]} Ke7 {[%emt 0:00:47]} 37. Kf1 {[%emt 0:00:44]} Kd7 {[%emt 0:00:46]} 38. Ke2 {[%emt 0:00:32]} Kc7 {[%emt 0:01:38]} 39. Kd3 {[%emt 0:01:13]} Bc5 {[%emt 0:00:27]} 40. Bd2 {[%emt 0:01:15]} Kb6 {[%emt 0:00:59]} 1/2-1/2

[Event "GER-ch Youth U12 2020"]
[Site "Willingen"]
[Date "2020.10.31"]
[Round "7.22"]
[White "Brandstrup, Luca Alexander"]
[Black "Schreidl, Michael"]
[Result "0-1"]
[ECO "C45"]
[WhiteElo "1575"]
[BlackElo "1640"]
[Annotator "NA RC"]
[PlyCount "170"]
[EventDate "2020.10.27"]
[EventType "swiss"]
[EventRounds "7"]
[EventCountry "GER"]
[SourceTitle "playchess.com"]
[Source "ChessBase"]
[SourceQuality "1"]
[TimeControl "40/5400+30:1800+30"]

1. e4 {[%emt 0:00:00]} e5 {[%emt 0:00:00]} 2. Nf3 {[%emt 0:00:00]} Nc6 {[%emt 0:00:00]} 3. d4 {[%emt 0:00:00]} exd4 {[%emt 0:00:00]} 4. Nxd4 {[%emt 0:00:01]} Bc5 {[%emt 0:00:00]} 5. Be3 {[%emt 0:00:18]} Qf6 {[%emt 0:00:03]} 6. c3 {[%emt 0:00:05]} Nge7 {[%emt 0:00:05]} 7. Bc4 {[%emt 0:00:07]} O-O {[%emt 0:00:13]} 8. O-O {[%emt 0:00:53]} b6 {[%emt 0:00:20]} 9. Nc2 {[%emt 0:06:43]} Ne5 {[%emt 0:16:08]} 10. Bd5 {[%emt 0:19:01]} c6 {[%emt 0:03:04]} 11. Bxc5 {[%emt 0:01:59]} bxc5 {[%emt 0:03:06]} 12. Bb3 {[%emt 0:00:57]} Ba6 {[%emt 0:04:25]} 13. Re1 {[%emt 0:03:31]} Nd3 {[%emt 0:02:12]} 14. Re3 {[%emt 0:13:17]} Qxf2+ {[%emt 0:01:58]} 15. Kh1 {[%emt 0:00:44]} Nxb2 {[%emt 0:03:26]} 16. Qe1 {[%emt 0:01:22]} Qxe1+ {[%emt 0:02:19]} 17. Nxe1 {[%emt 0:00:21]} Nc4 {[%emt 0:01:13]} 18. Bxc4 {[%emt 0:02:01]} Bxc4 {[%emt 0:00:06]} 19. Nd2 {[%emt 0:00:44]} Be6 {[%emt 0:01:08]} 20. Nb3 {[%emt 0:01:29]} Bxb3 {[%emt 0:01:37]} 21. axb3 {[%emt 0:00:12]} Rfe8 {[%emt 0:01:59]} 22. Nc2 {[%emt 0:01:05]} Reb8 {[%emt 0:00:56]} 23. c4 {[%emt 0:00:37]} Rb7 {[%emt 0:02:14]} 24. h3 {[%emt 0:04:14]} Rab8 {[%emt 0:01:28]} 25. Ra3 {[%emt 0:04:41]} Kf8 {[%emt 0:08:16]} 26. Rd3 {[%emt 0:01:56]} f6 {[%emt 0:08:47]} 27. Ne1 {[%emt 0:01:45]} Ng6 {[%emt 0:04:05]} 28. Nf3 {[%emt 0:00:44]} Re8 {[%emt 0:05:40]} 29. Nd2 {[%emt 0:02:58]} Nf4 {[%emt 0:01:12]} 30. Re3 {[%emt 0:03:56]} Ne6 {[%emt 0:04:51]} 31. Nf3 {[%emt 0:03:37]} Nd4 {[%emt 0:02:46]} 32. Nxd4 {[%emt 0:01:09]} cxd4 {[%emt 0:00:10]} 33. Re2 {[%emt 0:00:35]} c5 {[%emt 0:01:36]} 34. Kg1 {[%emt 0:01:16]} d6 {[%emt 0:05:25]} 35. Kf1 {[%emt 0:01:54]} Reb8 {[%emt 0:01:08]} 36. Rb2 {[%emt 0:01:10]} Kf7 {[%emt 0:00:23]} 37. Ke2 {[%emt 0:01:21]} Re7 {[%emt 0:00:48]} 38. Kd3 {[%emt 0:00:39]} Rbe8 {[%emt 0:00:38]} 39. Re2 {[%emt 0:00:17]} Kg8 {[%emt 0:08:54]} 40. g4 {[%emt 0:02:44]} h5 {[%emt 0:01:46]} 41. Ra1 {[%emt 0:30:29]} hxg4 {[%emt 0:30:09]} 42. hxg4 {[%emt 0:00:19]} Rb7 {[%emt 0:00:11]} 43. Rb1 {[%emt 0:01:20]} Reb8 {[%emt 0:00:59]} 44. Reb2 {[%emt 0:00:46]} Rb4 {[%emt 0:01:05]} 45. Kc2 {[%emt 0:00:47]} Kf7 {[%emt 0:00:23]} 46. Ra2 {[%emt 0:01:18]} R8b7 {[%emt 0:00:48]} 47. Rab2 {[%emt 0:03:56]} Ke6 {[%emt 0:00:18]} 48. Kd3 {[%emt 0:00:08]} Ke5 {[%emt 0:00:23]} 49. Kc2 {[%emt 0:05:08]} g6 {[%emt 0:03:54]} 50. Rf1 {[%emt 0:02:16]} Rh7 {[%emt 0:00:00]} 51. Rbb1 {[%emt 0:00:44]} Rh2+ {[%emt 0:00:12]} 52. Kc1 {[%emt 0:00:21]} Re2 {[%emt 0:00:09]} 53. Kd1 {[%emt 0:00:28]} Rxe4 {[%emt 0:00:09]} 54. Kd2 {[%emt 0:00:15]} a5 {[%emt 0:03:01]} 55. Rf3 {[%emt 0:00:53]} a4 {[%emt 0:00:00]} 56. Rbf1 {[%emt 0:00:00]} Rxb3 {[%emt 0:00:00]} 57. Rxf6 {[%emt 0:00:00]} Rxg4 {[%emt 0:00:00]} 58. Rf8 {[%emt 0:00:00]} Rg2+ {[%emt 0:00:00]} 59. Kc1 {[%emt 0:00:00]} Rc3+ {[%emt 0:00:00]} 60. Kb1 {[%emt 0:00:00]} Rxc4 {[%emt 0:00:00]} 61. Re1+ {[%emt 0:00:00]} Kd5 {[%emt 0:00:00]} 62. Rf6 {[%emt 0:00:00]} Rb4+ {[%emt 0:00:00]} 63. Ka1 {[%emt 0:00:00]} a3 {[%emt 0:00:00]} 64. Rxd6+ {[%emt 0:00:00]} Kc4 {[%emt 0:00:00]} 65. Rc1+ {[%emt 0:00:00]} Kb3 {[%emt 0:00:00]} 66. Ra6 {[%emt 0:00:00]} Rc2 {[%emt 0:00:08]} 67. Rb1+ {[%emt 0:00:00]} Kc4 {[%emt 0:02:11]} 68. Rd1 {[%emt 0:00:00]} Rc3 {[%emt 0:00:34]} 69. Rxg6 {[%emt 0:00:00]} Ra4 {[%emt 0:01:42]} 70. Rg4 {[%emt 0:00:00]} Ra6 {[%emt 0:00:27]} 71. Rf4 {[%emt 0:00:00]} Rh6 {[%emt 0:00:21]} 72. Rg4 {[%emt 0:00:00]} Rh2 {[%emt 0:01:11]} 73. Rgg1 {[%emt 0:00:00]} Rcc2 {[%emt 0:00:55]} 74. Rc1 {[%emt 0:00:00]} Rxc1+ {[%emt 0:00:35]} 75. Rxc1+ {[%emt 0:00:00]} Kd5 {[%emt 0:00:44]} 76. Re1 {[%emt 0:00:00]} d3 {[%emt 0:00:20]} 77. Rd1 {[%emt 0:00:00]} c4 {[%emt 0:00:11]} 78. Rc1 {[%emt 0:00:00]} Kd4 {[%emt 0:00:17]} 79. Rd1 {[%emt 0:00:00]} c3 {[%emt 0:00:16]} 80. Rc1 {[%emt 0:00:00]} d2 {[%emt 0:00:17]} 81. Rg1 {[%emt 0:00:00]} c2 {[%emt 0:00:40]} 82. Ka2 {[%emt 0:00:00]} d1=Q 83. Rxd1+ cxd1=Q+ 84. Kxa3 Rh3+ {[%emt 0:03:03]} 85. Kb4 {[%emt 0:00:00]} Qb1+ {[%emt 0:00:05]} 0-1

[Event "GER-ch Youth U12 2020"]
[Site "Willingen"]
[Date "2020.10.31"]
[Round "7.23"]
[White "Deschler, Arne"]
[Black "Müller, Mitja"]
[Result "1/2-1/2"]
[ECO "B25"]
[WhiteElo "1671"]
[BlackElo "1360"]
[Annotator "NA RC"]
[PlyCount "131"]
[EventDate "2020.10.27"]
[EventType "swiss"]
[EventRounds "7"]
[EventCountry "GER"]
[SourceTitle "playchess.com"]
[Source "ChessBase"]
[SourceQuality "1"]
[TimeControl "40/5400+30:1800+30"]

1. e4 {[%emt 0:00:00]} c5 {[%emt 0:00:00]} 2. Nc3 {[%emt 0:00:00]} Nc6 {[%emt 0:00:00]} 3. g3 {[%emt 0:00:00]} g6 {[%emt 0:00:00]} 4. Bg2 {[%emt 0:00:19]} Bg7 {[%emt 0:00:00]} 5. d3 {[%emt 0:00:38]} d6 {[%emt 0:00:04]} 6. Nge2 {[%emt 0:00:28]} Nd4 {[%emt 0:00:23]} 7. O-O {[%emt 0:01:06]} e6 {[%emt 0:02:10]} 8. Be3 {[%emt 0:02:28]} Ne7 {[%emt 0:00:48]} 9. h3 {[%emt 0:05:22]} O-O {[%emt 0:03:54]} 10. g4 {[%emt 0:03:27]} f5 {[%emt 0:02:22]} 11. gxf5 {[%emt 0:04:56]} exf5 {[%emt 0:00:20]} 12. f3 {[%emt 0:03:10]} Be6 {[%emt 0:08:04]} 13. Nf4 {[%emt 0:03:37]} Qd7 {[%emt 0:02:12]} 14. Ncd5 {[%emt 0:06:02]} Nxd5 {[%emt 0:04:21]} 15. exd5 {[%emt 0:01:38]} Bf7 {[%emt 0:01:45]} 16. c3 {[%emt 0:03:48]} g5 {[%emt 0:02:44]} 17. Nh5 {[%emt 0:06:11]} Bxh5 {[%emt 0:04:27]} 18. cxd4 {[%emt 0:01:09]} f4 {[%emt 0:03:37]} 19. Bf2 {[%emt 0:01:20]} cxd4 {[%emt 0:01:14]} 20. Qb3 {[%emt 0:02:24]} Rf5 {[%emt 0:03:49]} 21. h4 {[%emt 0:03:31]} Qf7 {[%emt 0:05:34]} 22. Bh3 {[%emt 0:01:36]} Rxd5 {[%emt 0:03:26]} 23. Rae1 {[%emt 0:01:14]} g4 {[%emt 0:10:36]} 24. fxg4 {[%emt 0:00:58]} Bg6 {[%emt 0:00:13]} 25. h5 {[%emt 0:00:18]} Bxh5 {[%emt 0:03:40]} 26. gxh5 {[%emt 0:01:12]} Rg5+ {[%emt 0:00:39]} 27. Kh2 {[%emt 0:00:29]} Qxb3 {[%emt 0:01:08]} 28. axb3 {[%emt 0:00:19]} Kh8 {[%emt 0:02:25]} 29. h6 {[%emt 0:00:28]} Be5 {[%emt 0:00:11]} 30. Rg1 {[%emt 0:04:00]} Rag8 {[%emt 0:00:36]} 31. Rxg5 {[%emt 0:00:49]} Rxg5 {[%emt 0:00:26]} 32. Rg1 {[%emt 0:00:14]} f3+ {[%emt 0:00:28]} 33. Bg3 {[%emt 0:00:20]} f2 {[%emt 0:01:18]} 34. Bxe5+ {[%emt 0:01:13]} Rxe5 {[%emt 0:00:15]} 35. Rg4 {[%emt 0:01:28]} Re2 {[%emt 0:00:59]} 36. Kg3 {[%emt 0:00:35]} Re3+ {[%emt 0:00:37]} 37. Kxf2 {[%emt 0:02:01]} Rxh3 {[%emt 0:00:10]} 38. Rxd4 {[%emt 0:01:03]} Rh2+ {[%emt 0:00:29]} 39. Ke3 {[%emt 0:00:15]} Rxh6 {[%emt 0:00:37]} 40. Rb4 {[%emt 0:00:48]} Rh3+ {[%emt 0:00:57]} 41. Kd2 {[%emt 0:30:22]} Rh2+ {[%emt 0:30:54]} 42. Kc3 {[%emt 0:00:03]} h5 {[%emt 0:01:44]} 43. Rxb7 {[%emt 0:00:40]} h4 {[%emt 0:00:40]} 44. Rxa7 {[%emt 0:02:42]} Rh1 {[%emt 0:00:40]} 45. Rd7 {[%emt 0:06:29]} h3 {[%emt 0:00:22]} 46. Kb4 {[%emt 0:00:54]} h2 {[%emt 0:00:20]} 47. Rxd6 {[%emt 0:00:05]} Kg7 {[%emt 0:00:22]} 48. Rd4 {[%emt 0:00:24]} Rg1 {[%emt 0:00:30]} 49. Rh4 {[%emt 0:00:14]} h1=Q {[%emt 0:00:43]} 50. Rxh1 {[%emt 0:00:08]} Rxh1 {[%emt 0:00:05]} 51. Kc5 {[%emt 0:02:13]} Rb1 {[%emt 0:01:10]} 52. b4 {[%emt 0:00:32]} Rxb2 {[%emt 0:00:50]} 53. d4 {[%emt 0:00:47]} Kf7 {[%emt 0:00:32]} 54. b5 {[%emt 0:00:30]} Ke7 {[%emt 0:00:40]} 55. Kc6 {[%emt 0:00:53]} Kd8 {[%emt 0:00:16]} 56. d5 {[%emt 0:00:36]} Rc2+ {[%emt 0:00:37]} 57. Kd6 {[%emt 0:01:23]} Kc8 {[%emt 0:00:27]} 58. Ke7 {[%emt 0:01:03]} Re2+ {[%emt 0:02:24]} 59. Kd6 {[%emt 0:00:18]} Kb7 {[%emt 0:00:13]} 60. Kd7 {[%emt 0:01:18]} Kb6 {[%emt 0:01:39]} 61. d6 {[%emt 0:00:30]} Kxb5 {[%emt 0:00:57]} 62. Kc7 {[%emt 0:00:19]} Rc2+ {[%emt 0:00:17]} 63. Kb7 {[%emt 0:00:05]} Rd2 {[%emt 0:10:55]} 64. Kc7 {[%emt 0:00:39]} Rc2+ {[%emt 0:00:47]} 65. Kb7 {[%emt 0:00:35]} Rd2 {[%emt 0:05:25]} 66. Kc7 {[%emt 0:02:36]} 1/2-1/2

[Event "GER-ch Youth U12 2020"]
[Site "Willingen"]
[Date "2020.10.31"]
[Round "7.24"]
[White "Stadelmann, Constantin"]
[Black "Göpfert, Gregor"]
[Result "0-1"]
[ECO "D12"]
[WhiteElo "1366"]
[BlackElo "1603"]
[Annotator "NA RC"]
[PlyCount "44"]
[EventDate "2020.10.27"]
[EventType "swiss"]
[EventRounds "7"]
[EventCountry "GER"]
[SourceTitle "playchess.com"]
[Source "ChessBase"]
[SourceQuality "1"]
[TimeControl "40/5400+30:1800+30"]

1. d4 {[%emt 0:00:00]} d5 {[%emt 0:00:00]} 2. Nf3 {[%emt 0:00:00]} Nf6 {[%emt 0:00:00]} 3. e3 {[%emt 0:00:00]} Bf5 {[%emt 0:00:23]} 4. c4 {[%emt 0:00:04]} c6 {[%emt 0:00:13]} 5. Nc3 {[%emt 0:00:21]} e6 {[%emt 0:00:21]} 6. Be2 {[%emt 0:00:16]} h6 {[%emt 0:00:28]} 7. O-O {[%emt 0:00:50]} Nbd7 {[%emt 0:01:02]} 8. b3 {[%emt 0:00:57]} Bd6 {[%emt 0:02:01]} 9. Bb2 {[%emt 0:00:31]} O-O {[%emt 0:03:27]} 10. c5 {[%emt 0:05:58]} Bc7 {[%emt 0:00:10]} 11. b4 {[%emt 0:01:19]} e5 {[%emt 0:01:37]} 12. dxe5 {[%emt 0:00:51]} Nxe5 {[%emt 0:02:41]} 13. a4 {[%emt 0:04:08]} Nxf3+ {[%emt 0:07:07]} 14. Bxf3 {[%emt 0:00:24]} Qe7 {[%emt 0:01:10]} 15. Qd2 {[%emt 0:03:48]} Rad8 {[%emt 0:04:42]} 16. b5 {[%emt 0:01:30]} Ne4 {[%emt 0:03:55]} 17. Bxe4 {[%emt 0:01:36]} dxe4 {[%emt 0:00:57]} 18. Qc2 {[%emt 0:03:30]} Qe5 {[%emt 0:03:04]} 19. g3 {[%emt 0:03:08]} Qe6 {[%emt 0:02:29]} 20. Ba3 {[%emt 0:02:17]} Rfe8 {[%emt 0:01:01]} 21. Bb4 {[%emt 0:04:23]} Bg4 {[%emt 0:01:29]} 22. a5 {[%emt 0:00:35]} Bf3 {[%emt 0:00:39]} 0-1

[Event "GER-ch Youth U12 2020"]
[Site "Willingen"]
[Date "2020.10.31"]
[Round "7.25"]
[White "Mader, Fabian"]
[Black "Schröder, Jan-Hendrik"]
[Result "1/2-1/2"]
[ECO "B31"]
[WhiteElo "1588"]
[BlackElo "1324"]
[Annotator "NA RC"]
[PlyCount "76"]
[EventDate "2020.10.27"]
[EventType "swiss"]
[EventRounds "7"]
[EventCountry "GER"]
[SourceTitle "playchess.com"]
[Source "ChessBase"]
[SourceQuality "1"]
[TimeControl "40/5400+30:1800+30"]

1. e4 {[%emt 0:00:00]} c5 {[%emt 0:00:00]} 2. Nf3 {[%emt 0:00:00]} Nc6 {[%emt 0:00:05]} 3. Bb5 {[%emt 0:00:00]} g6 {[%emt 0:00:14]} 4. O-O {[%emt 0:00:33]} Bg7 {[%emt 0:00:43]} 5. c3 {[%emt 0:00:51]} Nf6 {[%emt 0:05:30]} 6. Re1 {[%emt 0:00:29]} O-O {[%emt 0:01:17]} 7. d4 {[%emt 0:02:44]} cxd4 {[%emt 0:01:46]} 8. cxd4 {[%emt 0:00:43]} d5 {[%emt 0:02:25]} 9. e5 {[%emt 0:03:03]} Ne4 {[%emt 0:03:55]} 10. Nbd2 {[%emt 0:03:36]} Nxd2 {[%emt 0:02:13]} 11. Bxd2 {[%emt 0:01:35]} Bg4 {[%emt 0:02:52]} 12. Bxc6 {[%emt 0:03:00]} Bxf3 {[%emt 0:00:53]} 13. Qxf3 {[%emt 0:00:51]} bxc6 {[%emt 0:00:09]} 14. Rac1 {[%emt 0:00:54]} Qb6 {[%emt 0:00:49]} 15. Qc3 {[%emt 0:05:03]} Rfc8 {[%emt 0:01:22]} 16. b3 {[%emt 0:06:38]} e6 {[%emt 0:02:28]} 17. Rc2 {[%emt 0:09:24]} Rc7 {[%emt 0:02:36]} 18. Rec1 {[%emt 0:01:50]} Rac8 {[%emt 0:00:20]} 19. a4 {[%emt 0:08:58]} Bf8 {[%emt 0:05:55]} 20. b4 {[%emt 0:04:02]} a6 {[%emt 0:07:58]} 21. Rb2 {[%emt 0:10:16]} Rb7 {[%emt 0:07:13]} 22. Rcb1 {[%emt 0:18:12]} Rcb8 {[%emt 0:04:12]} 23. g3 {[%emt 0:03:35]} a5 {[%emt 0:02:01]} 24. b5 {[%emt 0:05:15]} c5 {[%emt 0:03:18]} 25. Be3 {[%emt 0:07:31]} c4 {[%emt 0:00:55]} 26. Bd2 {[%emt 0:00:58]} Ra8 {[%emt 0:02:07]} 27. Qe3 {[%emt 0:01:07]} Rc7 {[%emt 0:01:56]} 28. Bc3 {[%emt 0:00:20]} h5 {[%emt 0:03:48]} 29. h4 {[%emt 0:00:19]} Kh7 {[%emt 0:00:23]} 30. Kg2 {[%emt 0:00:32]} Bh6 {[%emt 0:00:58]} 31. f4 {[%emt 0:00:21]} Raa7 {[%emt 0:02:01]} 32. Rd1 {[%emt 0:01:59]} Bf8 {[%emt 0:01:32]} 33. Rdb1 {[%emt 0:00:17]} Ra8 {[%emt 0:01:55]} 34. Kf3 {[%emt 0:00:19]} Rca7 {[%emt 0:01:28]} 35. Ra2 {[%emt 0:00:31]} Be7 {[%emt 0:07:21]} 36. Kg2 {[%emt 0:00:36]} Rc8 {[%emt 0:03:33]} 37. Rc2 {[%emt 0:00:22]} Rca8 {[%emt 0:10:01]} 38. Ra2 {[%emt 0:00:06]} Rc8 {[%emt 0:00:59]} 1/2-1/2

[Event "GER-ch Youth U12 2020"]
[Site "Willingen"]
[Date "2020.10.31"]
[Round "7.26"]
[White "Chugunov, Ivan"]
[Black "Detjen, Mattes"]
[Result "1-0"]
[ECO "C54"]
[WhiteElo "1552"]
[BlackElo "1190"]
[Annotator "NA RC"]
[PlyCount "77"]
[EventDate "2020.10.27"]
[EventType "swiss"]
[EventRounds "7"]
[EventCountry "GER"]
[SourceTitle "playchess.com"]
[Source "ChessBase"]
[SourceQuality "1"]
[TimeControl "40/5400+30:1800+30"]

1. e4 {[%emt 0:00:00]} e5 {[%emt 0:00:00]} 2. Nf3 {[%emt 0:00:00]} Nc6 {[%emt 0:00:02]} 3. Bc4 {[%emt 0:00:00]} Bc5 {[%emt 0:00:10]} 4. c3 {[%emt 0:00:04]} Nf6 {[%emt 0:00:15]} 5. d3 {[%emt 0:00:07]} O-O {[%emt 0:01:40]} 6. Bb3 {[%emt 0:00:17]} d5 {[%emt 0:02:31]} 7. Nbd2 {[%emt 0:01:41]} Bg4 {[%emt 0:03:45]} 8. Qe2 {[%emt 0:01:22]} d4 {[%emt 0:04:24]} 9. a4 {[%emt 0:02:13]} a6 {[%emt 0:03:45]} 10. h3 {[%emt 0:00:33]} Bh5 {[%emt 0:00:38]} 11. O-O {[%emt 0:07:00]} Qd7 {[%emt 0:03:26]} 12. Rd1 {[%emt 0:02:19]} b5 {[%emt 0:01:36]} 13. Nf1 {[%emt 0:01:38]} dxc3 {[%emt 0:00:36]} 14. bxc3 {[%emt 0:00:10]} b4 {[%emt 0:00:08]} 15. cxb4 {[%emt 0:05:57]} Bxb4 {[%emt 0:00:24]} 16. Be3 {[%emt 0:00:32]} Ba5 {[%emt 0:00:41]} 17. Ng3 {[%emt 0:01:03]} Bxf3 {[%emt 0:01:12]} 18. Qxf3 {[%emt 0:00:50]} Bb6 {[%emt 0:00:15]} 19. Rac1 {[%emt 0:02:15]} Bxe3 {[%emt 0:04:21]} 20. fxe3 {[%emt 0:02:36]} Rab8 {[%emt 0:03:30]} 21. Bc4 {[%emt 0:02:48]} Rb2 {[%emt 0:03:39]} 22. Bxa6 {[%emt 0:01:13]} Ra8 {[%emt 0:01:01]} 23. Bb5 {[%emt 0:02:08]} Nd4 {[%emt 0:01:33]} 24. exd4 {[%emt 0:02:07]} Qxd4+ 25. Kh1 {[%emt 0:01:48]} Rf2 {[%emt 0:01:51]} 26. Nf5 {[%emt 0:00:47]} Qb2 {[%emt 0:02:18]} 27. Rb1 {[%emt 0:02:31]} Qc2 {[%emt 0:00:46]} 28. Rdc1 {[%emt 0:02:01]} Qd2 29. Qe3 Qa2 {[%emt 0:02:32]} 30. Bc4 {[%emt 0:00:42]} Qd2 {[%emt 0:02:12]} 31. Qxd2 {[%emt 0:01:43]} Rxd2 {[%emt 0:02:26]} 32. Bb5 {[%emt 0:00:21]} g6 {[%emt 0:01:29]} 33. Ne3 {[%emt 0:01:08]} Nh5 {[%emt 0:00:46]} 34. Rc2 {[%emt 0:00:42]} Rxc2 {[%emt 0:01:33]} 35. Nxc2 {[%emt 0:00:14]} Nf4 {[%emt 0:00:03]} 36. Nb4 {[%emt 0:00:54]} c5 {[%emt 0:02:07]} 37. Nd5 {[%emt 0:00:52]} Nxd5 {[%emt 0:07:11]} 38. exd5 {[%emt 0:00:04]} Rd8 {[%emt 0:00:13]} 39. Bc6 {[%emt 0:00:07]} 1-0

[Event "GER-ch Youth U12 2020"]
[Site "Willingen"]
[Date "2020.10.31"]
[Round "7.27"]
[White "Schneble, Milan"]
[Black "Ehrlich, Patrick"]
[Result "1/2-1/2"]
[ECO "B07"]
[WhiteElo "1418"]
[BlackElo "1448"]
[Annotator "NA RC"]
[PlyCount "45"]
[EventDate "2020.10.27"]
[EventType "swiss"]
[EventRounds "7"]
[EventCountry "GER"]
[SourceTitle "playchess.com"]
[Source "ChessBase"]
[SourceQuality "1"]
[TimeControl "40/5400+30:1800+30"]

1. e4 {[%emt 0:00:00]} d6 {[%emt 0:00:00]} 2. d4 {[%emt 0:00:00]} Nf6 {[%emt 0:00:00]} 3. Nc3 {[%emt 0:00:00]} g6 {[%emt 0:00:00]} 4. Bf4 {[%emt 0:00:22]} Bg7 {[%emt 0:00:03]} 5. Qd2 {[%emt 0:00:33]} O-O {[%emt 0:01:37]} 6. Nf3 {[%emt 0:00:17]} Bg4 {[%emt 0:00:25]} 7. Be2 {[%emt 0:00:21]} Bxf3 {[%emt 0:03:38]} 8. Bxf3 {[%emt 0:00:29]} Nfd7 {[%emt 0:00:12]} 9. O-O {[%emt 0:02:22]} Nc6 {[%emt 0:00:06]} 10. Ne2 {[%emt 0:02:41]} e5 {[%emt 0:01:00]} 11. dxe5 {[%emt 0:01:11]} Ndxe5 {[%emt 0:00:35]} 12. Nc3 {[%emt 0:01:38]} Nxf3+ {[%emt 0:02:52]} 13. gxf3 Nd4 14. Qd3 {[%emt 0:02:04]} Qf6 {[%emt 0:01:03]} 15. Nd5 {[%emt 0:01:04]} Qd8 {[%emt 0:05:22]} 16. c3 {[%emt 0:04:00]} Ne6 {[%emt 0:01:09]} 17. Bg3 {[%emt 0:02:01]} c6 {[%emt 0:00:54]} 18. Ne3 {[%emt 0:00:27]} Be5 {[%emt 0:01:46]} 19. Bxe5 {[%emt 0:00:45]} dxe5 {[%emt 0:00:06]} 20. Qxd8 {[%emt 0:01:08]} Raxd8 {[%emt 0:00:08]} 21. Rad1 {[%emt 0:00:11]} Rxd1 {[%emt 0:00:16]} 22. Rxd1 {[%emt 0:00:11]} Rd8 {[%emt 0:00:31]} 23. Rxd8+ {[%emt 0:00:33]} 1/2-1/2